[Event "GER-ch Youth U12w 2019"]
[Site "Willingen"]
[Date "2019.06.12"]
[Round "6.8"]
[White "Prinzen, Siri Marleen"]
[Black "Glowiak, Alexandra"]
[Result "1-0"]
[ECO "C54"]
[WhiteElo "1505"]
[BlackElo "1439"]
[Annotator "NA"]
[PlyCount "38"]
[EventDate "2019.06.07"]
[EventType "swiss"]
[EventRounds "9"]
[EventCountry "GER"]
[SourceTitle "playchess.com"]
[Source "ChessBase"]
[SourceQuality "1"]
[TimeControl "40/4500+30:900+30"]

1. e4 {[%emt 0:00:00]} e5 {[%emt 0:00:00]} 2. Nf3 {[%emt 0:00:00]} Nc6 {[%emt 0:00:00]} 3. Bc4 {[%emt 0:00:00]} Bc5 {[%emt 0:00:00]} 4. c3 {[%emt 0:00:00]} Nf6 {[%emt 0:00:00]} 5. d3 {[%emt 0:00:00]} O-O {[%emt 0:00:00]} 6. O-O {[%emt 0:00:00]} d5 {[%emt 0:00:00]} 7. exd5 {[%emt 0:00:00]} Nxd5 {[%emt 0:00:00]} 8. Bg5 {[%emt 0:00:00]} Qd6 {[%emt 0:00:00]} 9. Nbd2 {[%emt 0:00:00]} f5 {[%emt 0:00:00]} 10. Nb3 {[%emt 0:00:00]} f4 {[%emt 0:03:23]} 11. d4 {[%emt 0:03:18]} exd4 {[%emt 0:01:46]} 12. Nbxd4 {[%emt 0:01:37]} Nxd4 {[%emt 0:06:09]} 13. Nxd4 {[%emt 0:01:00]} Bxd4 {[%emt 0:00:26]} 14. Qxd4 {[%emt 0:00:27]} Be6 {[%emt 0:06:01]} 15. Bxd5 {[%emt 0:02:39]} Bxd5 {[%emt 0:03:24]} 16. Rfe1 {[%emt 0:04:36]} Qc6 {[%emt 0:08:03]} 17. Re7 {[%emt 0:03:06]} Rf7 {[%emt 0:04:07]} 18. Rxf7 {[%emt 0:00:13]} Bxf7 {[%emt 0:02:04]} 19. Bxf4 {[%emt 0:03:12]} a6 {[%emt 0:05:26] normal} 1-0

[Event "GER-ch Youth U12w 2019"]
[Site "Willingen"]
[Date "2019.06.12"]
[Round "6.9"]
[White "Labuda, Annika"]
[Black "Ulrich, Helena Irene"]
[Result "0-1"]
[ECO "B90"]
[WhiteElo "1251"]
[BlackElo "1514"]
[Annotator "NA"]
[PlyCount "89"]
[EventDate "2019.06.07"]
[EventType "swiss"]
[EventRounds "9"]
[EventCountry "GER"]
[SourceTitle "playchess.com"]
[Source "ChessBase"]
[SourceQuality "1"]
[TimeControl "40/4500+30:900+30"]

1. e4 {[%emt 0:00:00]} c5 {[%emt 0:00:00]} 2. Nf3 {[%emt 0:00:00]} d6 {[%emt 0:00:00]} 3. d4 {[%emt 0:00:00]} cxd4 {[%emt 0:00:00]} 4. Nxd4 {[%emt 0:00:00]} Nf6 {[%emt 0:00:00]} 5. Nc3 {[%emt 0:00:00]} a6 {[%emt 0:00:00]} 6. a4 {[%emt 0:00:00]} e5 {[%emt 0:00:00]} 7. Nb3 {[%emt 0:00:00]} Be6 {[%emt 0:00:00]} 8. Bg5 {[%emt 0:00:00]} Be7 {[%emt 0:00:00]} 9. Bd3 {[%emt 0:00:00]} O-O {[%emt 0:00:00]} 10. O-O {[%emt 0:00:00]} h6 {[%emt 0:00:00]} 11. Bh4 {[%emt 0:00:00]} Nc6 {[%emt 0:00:00]} 12. Nd2 {[%emt 0:00:00]} Nxe4 {[%emt 0:04:52]} 13. Bxe7 {[%emt 0:00:00]} Nxc3 {[%emt 0:00:50]} 14. Bxd8 {[%emt 0:00:00]} Nxd1 {[%emt 0:00:04]} 15. Bc7 {[%emt 0:00:00]} Nxb2 {[%emt 0:00:40]} 16. Bxd6 {[%emt 0:00:00]} Rfd8 {[%emt 0:00:23]} 17. Bc7 {[%emt 0:00:00]} Rd7 {[%emt 0:00:30]} 18. Bb6 {[%emt 0:00:00]} Nxd3 {[%emt 0:00:09]} 19. cxd3 {[%emt 0:00:06]} Rxd3 {[%emt 0:01:54]} 20. Ne4 {[%emt 0:02:01]} Rd5 {[%emt 0:05:11]} 21. Nc3 {[%emt 0:02:54]} Rd7 {[%emt 0:01:16]} 22. Rfe1 {[%emt 0:02:13]} f6 {[%emt 0:04:07]} 23. h3 {[%emt 0:07:06]} Nd4 {[%emt 0:01:31]} 24. Bxd4 {[%emt 0:09:02]} Rxd4 {[%emt 0:00:06]} 25. Ne4 {[%emt 0:05:36]} Rc8 {[%emt 0:01:45]} 26. f3 {[%emt 0:01:07]} Rcc4 {[%emt 0:02:24]} 27. g4 {[%emt 0:01:17]} Bd5 {[%emt 0:01:16]} 28. Nd6 {[%emt 0:03:36]} Rxa4 {[%emt 0:01:03]} 29. Rxa4 {[%emt 0:00:43]} Rxa4 {[%emt 0:00:05]} 30. Kf2 {[%emt 0:01:06]} b5 {[%emt 0:01:08]} 31. Rd1 {[%emt 0:01:41]} Rd4 {[%emt 0:00:43]} 32. Rxd4 {[%emt 0:05:10]} exd4 {[%emt 0:00:09]} 33. Nf5 {[%emt 0:00:16]} Bc4 {[%emt 0:00:50]} 34. Nxd4 {[%emt 0:00:29]} a5 {[%emt 0:01:13]} 35. Ke3 {[%emt 0:00:48]} Kf7 {[%emt 0:00:30]} 36. Kd2 {[%emt 0:00:09]} Ke8 {[%emt 0:00:43]} 37. Nf5 {[%emt 0:01:28]} Kf7 {[%emt 0:00:53]} 38. Kc3 {[%emt 0:01:34]} Be6 {[%emt 0:01:56]} 39. Nd6+ {[%emt 0:00:25]} Kg6 {[%emt 0:00:29]} 40. Nxb5 {[%emt 0:00:31]} Kg5 {[%emt 0:00:27]} 41. Nd4 {[%emt 0:15:54]} Bd5 {[%emt 0:15:13]} 42. Nf5 {[%emt 0:05:26]} Bxf3 {[%emt 0:02:18]} 43. Nxg7 {[%emt 0:00:14]} Bg2 {[%emt 0:00:15]} 44. Ne6+ {[%emt 0:02:27]} Kh4 {[%emt 0:00:10]} 45. Nf4 {[%emt 0:01:31] normal} 0-1

[Event "GER-ch Youth U12w 2019"]
[Site "Willingen"]
[Date "2019.06.13"]
[Round "7.1"]
[White "Zhou, Lepu Coco"]
[Black "Pohle, Saskia"]
[Result "1/2-1/2"]
[ECO "C63"]
[WhiteElo "1724"]
[BlackElo "1819"]
[Annotator "NA"]
[PlyCount "70"]
[EventDate "2019.06.07"]
[EventType "swiss"]
[EventRounds "9"]
[EventCountry "GER"]
[SourceTitle "playchess.com"]
[Source "ChessBase"]
[SourceQuality "1"]
[TimeControl "40/4500+30:900+30"]

1. e4 {[%emt 0:00:00]} e5 {[%emt 0:00:00]} 2. Nf3 {[%emt 0:00:00]} Nc6 {[%emt 0:00:00]} 3. Bb5 {[%emt 0:00:00]} f5 {[%emt 0:00:00]} 4. d3 {[%emt 0:00:00]} fxe4 {[%emt 0:00:00]} 5. dxe4 {[%emt 0:00:00]} Nf6 {[%emt 0:00:00]} 6. O-O {[%emt 0:00:00]} Bc5 {[%emt 0:00:00]} 7. Bxc6 {[%emt 0:00:00]} bxc6 {[%emt 0:00:00]} 8. Nxe5 {[%emt 0:00:00]} Qe7 {[%emt 0:00:00]} 9. Nd3 {[%emt 0:00:00]} Nxe4 {[%emt 0:00:00]} 10. Nxc5 {[%emt 0:00:00]} Qxc5 {[%emt 0:00:00]} 11. Qe2 {[%emt 0:00:00]} d5 {[%emt 0:02:57]} 12. Nc3 {[%emt 0:00:00]} Bf5 {[%emt 0:02:16]} 13. Nxe4 {[%emt 0:00:00]} dxe4 {[%emt 0:01:28]} 14. Be3 {[%emt 0:00:00]} Qe7 {[%emt 0:00:23]} 15. f3 {[%emt 0:04:29]} exf3 {[%emt 0:05:57]} 16. Qxf3 {[%emt 0:01:05]} O-O {[%emt 0:00:39]} 17. Bf2 {[%emt 0:01:45]} Qf6 {[%emt 0:09:35]} 18. Bc5 {[%emt 0:02:27]} Rf7 {[%emt 0:02:23]} 19. c3 {[%emt 0:01:36]} a6 {[%emt 0:04:43]} 20. Qe3 {[%emt 0:03:06]} Qe6 {[%emt 0:03:14]} 21. Qxe6 {[%emt 0:00:50]} Bxe6 {[%emt 0:00:07]} 22. Rfe1 {[%emt 0:01:22]} Re8 {[%emt 0:02:02]} 23. Re5 {[%emt 0:02:42]} Rf5 {[%emt 0:01:45]} 24. Rae1 {[%emt 0:01:26]} Kf7 {[%emt 0:00:16]} 25. Rxf5+ {[%emt 0:01:05]} Bxf5 {[%emt 0:00:09]} 26. Rxe8 {[%emt 0:00:14]} Kxe8 {[%emt 0:00:12]} 27. Bd4 {[%emt 0:00:19]} g6 {[%emt 0:00:14]} 28. Kf2 {[%emt 0:00:18]} Kd7 {[%emt 0:01:15]} 29. Ke3 {[%emt 0:00:55]} Ke6 {[%emt 0:01:13]} 30. Kf4 {[%emt 0:00:44]} h6 {[%emt 0:01:56]} 31. h4 {[%emt 0:02:36]} Bb1 {[%emt 0:04:52]} 32. a3 {[%emt 0:00:28]} Bc2 {[%emt 0:00:53]} 33. Bg7 {[%emt 0:00:40]} h5 {[%emt 0:00:08]} 34. Be5 {[%emt 0:00:25]} Kd7 {[%emt 0:01:44]} 35. b4 {[%emt 0:02:24]} Bf5 {[%emt 0:05:55] normal} 1/2-1/2

[Event "GER-ch Youth U12w 2019"]
[Site "Willingen"]
[Date "2019.06.13"]
[Round "7.2"]
[White "Braeutigam, Katerina"]
[Black "Fischer, Darja"]
[Result "1-0"]
[ECO "B20"]
[WhiteElo "1697"]
[BlackElo "1480"]
[Annotator "NA"]
[PlyCount "66"]
[EventDate "2019.06.07"]
[EventType "swiss"]
[EventRounds "9"]
[EventCountry "GER"]
[SourceTitle "playchess.com"]
[Source "ChessBase"]
[SourceQuality "1"]
[TimeControl "40/4500+30:900+30"]

1. e4 {[%emt 0:00:00]} c5 {[%emt 0:00:00]} 2. Be2 {[%emt 0:00:00]} a6 {[%emt 0:00:00]} 3. f4 {[%emt 0:00:00]} Nc6 {[%emt 0:00:00]} 4. Nf3 {[%emt 0:00:00]} d6 {[%emt 0:00:00]} 5. d3 {[%emt 0:00:00]} Nf6 {[%emt 0:00:00]} 6. O-O {[%emt 0:00:00]} e6 {[%emt 0:00:00]} 7. h3 {[%emt 0:00:00]} Be7 {[%emt 0:00:00]} 8. Be3 {[%emt 0:00:00]} O-O {[%emt 0:00:00]} 9. Nbd2 {[%emt 0:00:00]} b6 {[%emt 0:01:24]} 10. Qe1 {[%emt 0:00:00]} Bb7 {[%emt 0:03:31]} 11. Kh1 {[%emt 0:01:13]} Kh8 {[%emt 0:04:08]} 12. g4 {[%emt 0:00:54]} Rg8 {[%emt 0:04:26]} 13. Rg1 {[%emt 0:01:53]} Nd7 {[%emt 0:02:52]} 14. g5 {[%emt 0:05:40]} g6 {[%emt 0:06:09]} 15. h4 {[%emt 0:02:51]} Re8 {[%emt 0:05:11]} 16. h5 {[%emt 0:05:32]} Kg7 {[%emt 0:04:49]} 17. Qh4 {[%emt 0:02:11]} Nf8 {[%emt 0:03:16]} 18. Rg2 {[%emt 0:01:41]} Qd7 {[%emt 0:03:39]} 19. Rh2 {[%emt 0:02:20]} Bd8 {[%emt 0:02:12]} 20. Kg2 {[%emt 0:01:25]} d5 {[%emt 0:03:47]} 21. Rah1 {[%emt 0:02:52]} Kg8 {[%emt 0:04:09]} 22. Nf1 {[%emt 0:16:56]} a5 {[%emt 0:06:57]} 23. Ng3 {[%emt 0:00:58]} Ra7 {[%emt 0:02:07]} 24. Rh3 {[%emt 0:07:22]} Ba8 {[%emt 0:02:54]} 25. Nh2 {[%emt 0:02:40]} a4 {[%emt 0:02:32]} 26. Ng4 {[%emt 0:01:40]} a3 {[%emt 0:01:24]} 27. Bc1 {[%emt 0:07:39]} axb2 {[%emt 0:04:56]} 28. Bxb2 {[%emt 0:00:15]} d4 {[%emt 0:00:19]} 29. a3 {[%emt 0:00:51]} Rc7 {[%emt 0:03:59]} 30. Bf3 {[%emt 0:03:40]} Ra7 {[%emt 0:01:29]} 31. Nf6+ {[%emt 0:06:17]} Bxf6 {[%emt 0:00:30]} 32. gxf6 {[%emt 0:00:04]} b5 {[%emt 0:03:10]} 33. Qg5 {[%emt 0:00:48]} e5 {[%emt 0:03:39] normal} 1-0

[Event "GER-ch Youth U12w 2019"]
[Site "Willingen"]
[Date "2019.06.13"]
[Round "7.4"]
[White "Voigt, Anastasia"]
[Black "Sereda, Yaroslava"]
[Result "0-1"]
[ECO "B35"]
[WhiteElo "1447"]
[BlackElo "1626"]
[Annotator "NA"]
[PlyCount "99"]
[EventDate "2019.06.07"]
[EventType "swiss"]
[EventRounds "9"]
[EventCountry "GER"]
[SourceTitle "playchess.com"]
[Source "ChessBase"]
[SourceQuality "1"]
[TimeControl "40/4500+30:900+30"]

1. e4 {[%emt 0:00:00]} c5 {[%emt 0:00:00]} 2. Nf3 {[%emt 0:00:00]} Nc6 {[%emt 0:00:00]} 3. d4 {[%emt 0:00:00]} cxd4 {[%emt 0:00:00]} 4. Nxd4 {[%emt 0:00:00]} g6 {[%emt 0:00:00]} 5. Nc3 {[%emt 0:00:00]} Bg7 {[%emt 0:00:00]} 6. Be3 {[%emt 0:00:00]} Nf6 {[%emt 0:00:00]} 7. Bc4 {[%emt 0:00:00]} O-O {[%emt 0:00:00]} 8. f3 {[%emt 0:00:00]} Qb6 {[%emt 0:00:00]} 9. Bb3 {[%emt 0:01:27]} Nxe4 {[%emt 0:00:00]} 10. Nxe4 {[%emt 0:05:57]} Bxd4 {[%emt 0:01:00]} 11. Bxd4 {[%emt 0:01:26]} Nxd4 {[%emt 0:00:31]} 12. Qd3 {[%emt 0:01:34]} d6 {[%emt 0:07:10]} 13. O-O-O {[%emt 0:03:42]} Nxb3+ {[%emt 0:01:33]} 14. axb3 {[%emt 0:00:41]} Bd7 {[%emt 0:02:19]} 15. Rhe1 {[%emt 0:01:08]} Rfc8 {[%emt 0:17:46]} 16. Nc3 {[%emt 0:01:20]} Be6 {[%emt 0:05:00]} 17. g3 {[%emt 0:09:11]} Qc6 {[%emt 0:05:43]} 18. Rd2 {[%emt 0:03:53]} a6 {[%emt 0:09:40]} 19. Nd5 {[%emt 0:09:44]} Bxd5 {[%emt 0:01:23]} 20. Qxd5 {[%emt 0:00:16]} Qxd5 {[%emt 0:03:18]} 21. Rxd5 {[%emt 0:00:10]} Rc7 {[%emt 0:00:21]} 22. Rd4 {[%emt 0:01:10]} Rac8 {[%emt 0:01:06]} 23. c3 {[%emt 0:00:19]} Kg7 24. Kd2 {[%emt 0:01:04]} Rd7 {[%emt 0:07:27]} 25. h3 {[%emt 0:01:42]} Rcd8 {[%emt 0:01:46]} 26. Kc2 {[%emt 0:01:41]} e5 {[%emt 0:03:40]} 27. Rd5 {[%emt 0:00:32]} f6 {[%emt 0:00:21]} 28. Red1 {[%emt 0:01:03]} Kf7 {[%emt 0:00:21]} 29. Kd3 {[%emt 0:00:33]} Ke6 {[%emt 0:00:54]} 30. Ke3 {[%emt 0:00:29]} f5 {[%emt 0:02:35]} 31. b4 {[%emt 0:02:03]} b5 {[%emt 0:02:02]} 32. g4 {[%emt 0:05:12]} h6 {[%emt 0:01:42]} 33. h4 {[%emt 0:04:39]} fxg4 {[%emt 0:02:37]} 34. fxg4 {[%emt 0:00:20]} Rf8 {[%emt 0:00:25]} 35. R5d2 {[%emt 0:02:29]} Rf4 {[%emt 0:01:01]} 36. Rg1 {[%emt 0:00:58]} Rdf7 {[%emt 0:00:45]} 37. Rg3 {[%emt 0:02:59]} d5 {[%emt 0:01:08]} 38. Rh2 {[%emt 0:01:33]} e4 {[%emt 0:05:19]} 39. Kd4 {[%emt 0:00:51]} Kd6 {[%emt 0:01:18]} 40. h5 {[%emt 0:04:39]} g5 {[%emt 0:01:21]} 41. Re2 {[%emt 0:16:48]} Rf3 {[%emt 0:17:05]} 42. Reg2 {[%emt 0:02:35]} Rxg3 {[%emt 0:00:00]} 43. Rxg3 {[%emt 0:00:00]} Rf2 {[%emt 0:00:00]} 44. Ke3 {[%emt 0:00:00]} Rxb2 {[%emt 0:00:00]} 45. Rg1 {[%emt 0:00:00]} Rc2 {[%emt 0:00:00]} 46. Kd4 {[%emt 0:00:00]} Rd2+ {[%emt 0:00:00]} 47. Ke3 {[%emt 0:00:00]} Rd3+ {[%emt 0:00:00]} 48. Ke2 {[%emt 0:00:00]} Rxc3 {[%emt 0:00:00]} 49. Ra1 {[%emt 0:00:00]} Rc6 {[%emt 0:00:00]} 50. Rf1 {[%emt 0:00:00] normal} 0-1

[Event "GER-ch Youth U12w 2019"]
[Site "Willingen"]
[Date "2019.06.13"]
[Round "7.5"]
[White "Adelmeyer, Nelly"]
[Black "Wilmink, Anna"]
[Result "1/2-1/2"]
[ECO "B22"]
[WhiteElo "1420"]
[BlackElo "1466"]
[Annotator "NA"]
[PlyCount "80"]
[EventDate "2019.06.07"]
[EventType "swiss"]
[EventRounds "9"]
[EventCountry "GER"]
[SourceTitle "playchess.com"]
[Source "ChessBase"]
[SourceQuality "1"]
[TimeControl "40/4500+30:900+30"]

1. e4 {[%emt 0:00:00]} c5 {[%emt 0:00:00]} 2. c3 {[%emt 0:00:00]} d5 {[%emt 0:00:00]} 3. exd5 {[%emt 0:00:00]} Qxd5 {[%emt 0:00:00]} 4. Nf3 {[%emt 0:00:00]} Nc6 {[%emt 0:00:00]} 5. Bb5 {[%emt 0:00:00]} a6 {[%emt 0:00:00]} 6. Bxc6+ {[%emt 0:00:00]} Qxc6 {[%emt 0:00:00]} 7. d4 {[%emt 0:00:00]} Bg4 {[%emt 0:00:00]} 8. d5 {[%emt 0:00:00]} Qd6 {[%emt 0:00:00]} 9. O-O {[%emt 0:04:01]} Nf6 {[%emt 0:01:39]} 10. c4 {[%emt 0:01:14]} b5 {[%emt 0:02:50]} 11. b3 {[%emt 0:08:05]} g6 {[%emt 0:01:34]} 12. Nbd2 {[%emt 0:02:03]} Bg7 {[%emt 0:01:22]} 13. Bb2 {[%emt 0:01:37]} O-O {[%emt 0:01:06]} 14. Re1 {[%emt 0:07:58]} Rfe8 {[%emt 0:04:07]} 15. Qe2 {[%emt 0:07:44]} Qd7 {[%emt 0:09:45]} 16. h3 {[%emt 0:10:38]} Bxf3 {[%emt 0:01:41]} 17. Nxf3 {[%emt 0:00:11]} Rad8 {[%emt 0:05:34]} 18. Ne5 {[%emt 0:01:38]} Qb7 {[%emt 0:03:08]} 19. Nc6 {[%emt 0:05:03]} Rd7 {[%emt 0:03:03]} 20. Rac1 {[%emt 0:12:10]} b4 {[%emt 0:06:07]} 21. Ne5 {[%emt 0:03:45]} Rdd8 {[%emt 0:05:10]} 22. Nc6 {[%emt 0:03:35]} Rd7 {[%emt 0:02:55]} 23. a3 {[%emt 0:00:11]} e6 {[%emt 0:05:20]} 24. Bxf6 {[%emt 0:03:11]} Bxf6 {[%emt 0:01:07]} 25. axb4 {[%emt 0:00:10]} cxb4 {[%emt 0:00:55]} 26. Red1 {[%emt 0:00:37]} Bc3 {[%emt 0:03:45]} 27. Qe3 {[%emt 0:00:35]} Qc8 {[%emt 0:04:14]} 28. Qb6 {[%emt 0:01:58]} exd5 {[%emt 0:02:56]} 29. Rxd5 {[%emt 0:02:46]} Re6 {[%emt 0:03:23]} 30. Rxd7 {[%emt 0:00:26]} Qxd7 {[%emt 0:00:22]} 31. Qd8+ {[%emt 0:00:47]} Qxd8 {[%emt 0:00:57]} 32. Nxd8 {[%emt 0:00:04]} Re2 {[%emt 0:01:28]} 33. Rb1 {[%emt 0:01:44]} Bd4 {[%emt 0:01:52]} 34. Nc6 {[%emt 0:00:23]} Bc5 {[%emt 0:01:09]} 35. Rd1 {[%emt 0:04:55]} Rxf2 {[%emt 0:03:30]} 36. Kh2 {[%emt 0:00:10]} Rb2 {[%emt 0:03:46]} 37. Rd3 {[%emt 0:00:26]} Kg7 {[%emt 0:01:12]} 38. Na5 {[%emt 0:01:13]} Kh6 {[%emt 0:03:37]} 39. Nc6 {[%emt 0:00:18]} Kg7 {[%emt 0:01:24]} 40. Kg3 {[%emt 0:01:03]} Kf6 {[%emt 0:02:44] normal} 1/2-1/2

[Event "GER-ch Youth U12w 2019"]
[Site "Willingen"]
[Date "2019.06.13"]
[Round "7.6"]
[White "Hubert, Charlotte"]
[Black "Keymer, Cecilia"]
[Result "0-1"]
[ECO "C47"]
[WhiteElo "1311"]
[BlackElo "1511"]
[Annotator "NA"]
[PlyCount "64"]
[EventDate "2019.06.07"]
[EventType "swiss"]
[EventRounds "9"]
[EventCountry "GER"]
[SourceTitle "playchess.com"]
[Source "ChessBase"]
[SourceQuality "1"]
[TimeControl "40/4500+30:900+30"]

1. e4 {[%emt 0:00:00]} e5 {[%emt 0:00:00]} 2. Nf3 {[%emt 0:00:00]} Nc6 {[%emt 0:00:00]} 3. Nc3 {[%emt 0:00:00]} Nf6 {[%emt 0:00:00]} 4. d4 {[%emt 0:00:00]} exd4 {[%emt 0:00:00]} 5. Nxd4 {[%emt 0:00:00]} Bb4 {[%emt 0:00:00]} 6. Nxc6 {[%emt 0:00:00]} bxc6 {[%emt 0:00:00]} 7. Bd3 {[%emt 0:00:00]} d5 {[%emt 0:00:00]} 8. exd5 {[%emt 0:00:00]} cxd5 {[%emt 0:00:00]} 9. O-O {[%emt 0:00:00]} O-O {[%emt 0:00:00]} 10. Bg5 {[%emt 0:00:00]} c6 {[%emt 0:00:00]} 11. Na4 {[%emt 0:00:00]} Be6 {[%emt 0:02:14]} 12. b3 {[%emt 0:07:02]} Bd6 {[%emt 0:08:07]} 13. h3 {[%emt 0:02:59]} h6 {[%emt 0:05:48]} 14. Be3 {[%emt 0:05:56]} Qc8 {[%emt 0:07:58]} 15. Qf3 {[%emt 0:11:17]} Be5 {[%emt 0:05:02]} 16. Rac1 {[%emt 0:02:33]} d4 {[%emt 0:05:22]} 17. Bd2 {[%emt 0:04:04]} c5 {[%emt 0:06:43]} 18. c4 {[%emt 0:17:16]} Bd7 {[%emt 0:11:07]} 19. Rfe1 {[%emt 0:13:17]} Qc7 {[%emt 0:03:49]} 20. Nb2 {[%emt 0:01:01]} Rfe8 {[%emt 0:03:40]} 21. Bf1 {[%emt 0:01:46]} Bc6 {[%emt 0:03:31]} 22. Qd1 {[%emt 0:00:54]} Bd6 {[%emt 0:02:14]} 23. Nd3 {[%emt 0:02:36]} Ne4 {[%emt 0:01:08]} 24. Rc2 {[%emt 0:04:42]} Nxd2 {[%emt 0:00:34]} 25. Qxd2 {[%emt 0:00:15]} Rab8 {[%emt 0:03:45]} 26. Rb2 {[%emt 0:02:58]} Rxe1 {[%emt 0:02:05]} 27. Qxe1 {[%emt 0:00:18]} Re8 {[%emt 0:01:18]} 28. Qd2 {[%emt 0:00:54]} Bd7 {[%emt 0:01:12]} 29. Rb1 {[%emt 0:01:30]} Re6 {[%emt 0:00:58]} 30. Re1 {[%emt 0:01:25]} Rg6 {[%emt 0:01:09]} 31. Kh1 {[%emt 0:00:46]} Qb7 {[%emt 0:01:03]} 32. h4 {[%emt 0:01:36] normal} Rg4 {[%emt 0:02:06] normal} 0-1

[Event "GER-ch Youth U12w 2019"]
[Site "Willingen"]
[Date "2019.06.13"]
[Round "7.7"]
[White "Roncea, Andrea-Alexandra"]
[Black "von Beckh, Frieda"]
[Result "1-0"]
[ECO "B31"]
[WhiteElo "1558"]
[BlackElo "1465"]
[Annotator "NA"]
[PlyCount "53"]
[EventDate "2019.06.07"]
[EventType "swiss"]
[EventRounds "9"]
[EventCountry "GER"]
[SourceTitle "playchess.com"]
[Source "ChessBase"]
[SourceQuality "1"]
[TimeControl "40/4500+30:900+30"]

1. e4 {[%emt 0:00:00]} c5 {[%emt 0:00:00]} 2. Nf3 {[%emt 0:00:00]} Nc6 {[%emt 0:00:00]} 3. Bb5 {[%emt 0:00:00]} g6 {[%emt 0:00:00]} 4. O-O {[%emt 0:00:00]} Bg7 {[%emt 0:00:00]} 5. Re1 {[%emt 0:00:00]} Nf6 {[%emt 0:00:00]} 6. e5 {[%emt 0:00:00]} Nd5 {[%emt 0:00:00]} 7. Nc3 {[%emt 0:00:00]} Nxc3 {[%emt 0:00:00]} 8. dxc3 {[%emt 0:00:00]} O-O {[%emt 0:00:00]} 9. Bg5 {[%emt 0:00:00]} Re8 {[%emt 0:00:00]} 10. Qd2 {[%emt 0:00:00]} Qb6 {[%emt 0:00:00]} 11. Bxc6 {[%emt 0:00:00]} dxc6 {[%emt 0:00:00]} 12. b3 {[%emt 0:00:00]} Bf5 {[%emt 0:00:00]} 13. Nh4 {[%emt 0:03:36]} Rad8 {[%emt 0:00:00]} 14. Qe2 {[%emt 0:01:00]} Bd7 {[%emt 0:00:00]} 15. Qe3 {[%emt 0:07:09]} f6 {[%emt 0:01:13]} 16. Bh6 {[%emt 0:02:26]} Bh8 {[%emt 0:03:06]} 17. e6 {[%emt 0:04:30]} Bc8 {[%emt 0:02:11]} 18. Qg3 {[%emt 0:01:54]} g5 {[%emt 0:01:22]} 19. Nf5 {[%emt 0:04:16]} c4 {[%emt 0:17:09]} 20. Bxg5 {[%emt 0:03:23]} fxg5 {[%emt 0:03:21]} 21. Qxg5+ {[%emt 0:00:15]} Kf8 {[%emt 0:00:36]} 22. Qh6+ {[%emt 0:00:42]} Kg8 {[%emt 0:00:17]} 23. Re4 {[%emt 0:00:33]} Bxe6 {[%emt 0:00:45]} 24. Qxe6+ {[%emt 0:00:25]} Kf8 {[%emt 0:00:14]} 25. Nh6 {[%emt 0:00:38]} Kg7 {[%emt 0:00:56]} 26. Rg4+ {[%emt 0:00:08]} Kf8 {[%emt 0:00:10]} 27. Qf7# {[%emt 0:00:07] normal} 1-0

[Event "GER-ch Youth U12w 2019"]
[Site "Willingen"]
[Date "2019.06.13"]
[Round "7.8"]
[White "Ulrich, Helena Irene"]
[Black "Prinzen, Siri Marleen"]
[Result "1/2-1/2"]
[ECO "B17"]
[WhiteElo "1514"]
[BlackElo "1505"]
[Annotator "NA"]
[PlyCount "49"]
[EventDate "2019.06.07"]
[EventType "swiss"]
[EventRounds "9"]
[EventCountry "GER"]
[SourceTitle "playchess.com"]
[Source "ChessBase"]
[SourceQuality "1"]
[TimeControl "40/4500+30:900+30"]

1. e4 {[%emt 0:00:00]} c6 {[%emt 0:00:00]} 2. d4 {[%emt 0:00:00]} d5 {[%emt 0:00:00]} 3. Nc3 {[%emt 0:00:00]} dxe4 {[%emt 0:00:00]} 4. Nxe4 {[%emt 0:00:00]} Nd7 {[%emt 0:00:00]} 5. Nf3 {[%emt 0:00:00]} Ngf6 {[%emt 0:00:00]} 6. Nxf6+ {[%emt 0:00:00]} Nxf6 {[%emt 0:00:00]} 7. Ne5 {[%emt 0:00:00]} Bf5 {[%emt 0:00:00]} 8. c3 {[%emt 0:00:00]} e6 {[%emt 0:00:00]} 9. g4 {[%emt 0:00:00]} Qd5 {[%emt 0:00:14]} 10. Rg1 {[%emt 0:00:00]} Bg6 {[%emt 0:03:29]} 11. h4 {[%emt 0:01:03]} Qe4+ {[%emt 0:03:41]} 12. Be2 {[%emt 0:05:38]} h6 {[%emt 0:06:03]} 13. Nxg6 {[%emt 0:05:18]} fxg6 {[%emt 0:00:32]} 14. f3 {[%emt 0:01:29]} Qd5 {[%emt 0:00:15]} 15. Qc2 {[%emt 0:02:38]} O-O-O {[%emt 0:05:09]} 16. Qxg6 {[%emt 0:09:01]} c5 {[%emt 0:04:23]} 17. Be3 {[%emt 0:07:33]} cxd4 {[%emt 0:08:24]} 18. Bxd4 {[%emt 0:03:22]} Bc5 {[%emt 0:09:30]} 19. O-O-O {[%emt 0:10:14]} Bxd4 {[%emt 0:09:10]} 20. Rxd4 {[%emt 0:00:08]} Qe5 {[%emt 0:01:11]} 21. Qd3 {[%emt 0:07:41]} Rxd4 {[%emt 0:02:39]} 22. cxd4 {[%emt 0:00:14]} Qd6 {[%emt 0:01:46]} 23. Kb1 {[%emt 0:02:46]} Kb8 {[%emt 0:01:02] normal} 24. Rc1 {[%emt 0:02:02]} Rd8 {[%emt 0:01:21]} 25. Qc3 {[%emt 0:02:23] normal} 1/2-1/2

[Event "GER-ch Youth U12w 2019"]
[Site "Willingen"]
[Date "2019.06.13"]
[Round "7.9"]
[White "Ding, Tina"]
[Black "Petrosyan, Ani"]
[Result "1-0"]
[ECO "B12"]
[WhiteElo "1180"]
[BlackElo "1378"]
[Annotator "NA"]
[PlyCount "58"]
[EventDate "2019.06.07"]
[EventType "swiss"]
[EventRounds "9"]
[EventCountry "GER"]
[SourceTitle "playchess.com"]
[Source "ChessBase"]
[SourceQuality "1"]
[TimeControl "40/4500+30:900+30"]

1. e4 {[%emt 0:00:00]} c6 {[%emt 0:00:00]} 2. d4 {[%emt 0:00:00]} d5 {[%emt 0:00:00]} 3. e5 {[%emt 0:00:00]} c5 {[%emt 0:00:00]} 4. c3 {[%emt 0:00:00]} Nc6 {[%emt 0:00:00]} 5. Nf3 {[%emt 0:00:00]} Bg4 {[%emt 0:00:00]} 6. h3 {[%emt 0:00:00]} Bxf3 {[%emt 0:00:00]} 7. gxf3 {[%emt 0:00:00]} cxd4 {[%emt 0:00:00]} 8. cxd4 {[%emt 0:00:00]} e6 {[%emt 0:00:00]} 9. Be3 {[%emt 0:00:00]} Bb4+ {[%emt 0:00:00]} 10. Nc3 {[%emt 0:00:00]} Nge7 {[%emt 0:00:00]} 11. Bd3 {[%emt 0:05:20]} O-O {[%emt 0:05:37]} 12. Rg1 {[%emt 0:06:48]} Ng6 {[%emt 0:01:32]} 13. a3 {[%emt 0:02:58]} Ba5 {[%emt 0:03:29]} 14. b4 {[%emt 0:05:18]} Bb6 {[%emt 0:00:38]} 15. Ne2 {[%emt 0:03:00]} Rc8 {[%emt 0:04:49]} 16. Rc1 {[%emt 0:02:58]} Qd7 {[%emt 0:02:05]} 17. Qd2 {[%emt 0:03:36]} Nce7 {[%emt 0:04:49]} 18. Rxc8 {[%emt 0:02:20]} Rxc8 {[%emt 0:00:54]} 19. Nf4 {[%emt 0:02:24]} Qc7 {[%emt 0:10:59]} 20. Ke2 {[%emt 0:03:33]} Kh8 {[%emt 0:04:07]} 21. Nh5 {[%emt 0:04:04]} Qc3 {[%emt 0:05:49]} 22. Bh6 {[%emt 0:02:06]} gxh6 {[%emt 0:04:44]} 23. Qxh6 {[%emt 0:00:13]} Qb2+ {[%emt 0:04:12]} 24. Kd1 {[%emt 0:01:10]} Qa1+ {[%emt 0:08:13]} 25. Kd2 {[%emt 0:02:05]} Qb2+ {[%emt 0:05:02]} 26. Kd1 {[%emt 0:00:38]} Qb3+ {[%emt 0:06:48]} 27. Ke2 {[%emt 0:03:10]} Rg8 {[%emt 0:05:13]} 28. Rg4 {[%emt 0:04:24]} Qb2+ {[%emt 0:01:45] normal} 29. Ke1 {[%emt 0:01:27] normal} Bxd4 {[%emt 0:02:47] normal} 1-0